fUST/lending_fUST_20240220
["ID","MTS","AMOUNT","RATE_DAILY","PERIOD"]
[314460077,1708367460973,-1750.47,0.00029589,2]
[314460079,1708367460982,-500.0,0.00029589,2]
[314460081,1708367460993,-1118.02,0.00029589,2]
[314460083,1708367461001,-500.0,0.00029589,2]
[314460085,1708367461010,-500.0,0.00029589,2]
[314460087,1708367461019,-500.0,0.00029589,2]
[314460089,1708367461029,-586.37,0.00029589,2]
[314460091,1708367461037,-500.0,0.00029589,2]
[314460093,1708367461047,-4816.66,0.00029589,2]
[314460095,1708367461055,-577.82,0.00029589,2]
[314460097,1708367461064,-516.47,0.00029589,2]
[314460099,1708367461074,-500.0,0.00029589,2]
[314460101,1708367461083,-500.0,0.00029589,2]
[314460103,1708367461093,-500.0,0.00029589,2]
[314460105,1708367461102,-2333.29,0.00029589,2]
[314460107,1708367461111,-500.0,0.00029589,2]
[314460109,1708367461120,-4378.32,0.00029589,2]
[314460111,1708367461130,-500.0,0.00029589,2]
[314460113,1708367461139,-910.01,0.00029589,2]
[314460115,1708367461150,-797.47,0.00029589,2]
[314460117,1708367461159,-151.0,0.00029589,2]
[314460119,1708367461168,-500.0,0.00029589,2]
[314460121,1708367461178,-500.0,0.00029589,2]
[314460123,1708367461187,-500.0,0.00029589,2]
[314460125,1708367461196,-500.0,0.00029589,2]
[314460127,1708367461205,-905.61,0.00029589,2]
[314460129,1708367461215,-727.06,0.00029589,2]
[314460131,1708367461224,-907.37,0.00029589,2]
[314460133,1708367461233,-500.0,0.00029589,2]
[314460135,1708367461245,-500.0,0.00029589,2]
[314460137,1708367461254,-1074.74,0.00029589,2]
[314460139,1708367461263,-500.0,0.00029589,2]
[314460141,1708367461273,-500.0,0.00029589,2]
[314460143,1708367461282,-500.0,0.00029589,2]
[314460145,1708367461291,-1690.29,0.00029589,2]
[314460147,1708367461301,-500.0,0.00029589,2]
[314460149,1708367461310,-500.0,0.00029589,2]
[314460151,1708367461319,-500.0,0.00029589,2]
[314460153,1708367461328,-4924.96,0.00029589,2]
[314460155,1708367461337,-559.94,0.00029589,2]
[314460157,1708367461346,-2916.3,0.00029589,2]
[314460159,1708367461355,-3521.91,0.00029589,2]
[314460161,1708367461365,-500.0,0.00029589,2]
[314460163,1708367461374,-3532.56,0.00029589,2]
[314460165,1708367461383,-2379.85,0.00029589,2]
[314460167,1708367461392,-2054.58,0.00029589,2]
[314460169,1708367461401,-500.0,0.00029589,2]
[314460172,1708367461413,-9364.8,0.00029589,2]
[314460174,1708367461428,-1083.26,0.00029589,2]
[314460176,1708367461442,-690.81,0.00029589,2]
[314460179,1708367461456,-1048.44,0.00029589,2]
[314460181,1708367461468,-1633.78,0.00029589,2]
[314460183,1708367461478,-500.0,0.00029589,2]
[314460186,1708367461491,-12732.29,0.00029589,2]
[314460188,1708367461504,-17905.74,0.00029589,2]
[314460190,1708367461516,-25345.28,0.00029589,2]
[314460192,1708367461528,-3571.69,0.00029589,2]
[314460195,1708367461540,-1501.7,0.00029589,2]
[314460197,1708367461552,-19882.51,0.00029589,2]
[314460200,1708367461565,-500.0,0.00029589,2]
[314460202,1708367461576,-500.0,0.00029589,2]
[314460204,1708367461586,-500.0,0.00029589,2]
[314460206,1708367461597,-12867.4,0.00029589,2]
[314460208,1708367461610,-2687.22,0.00029589,2]
[314460211,1708367461624,-28999.91,0.00029589,2]
[314460213,1708367461636,-3171.61,0.00029589,2]
[314460215,1708367461648,-660.77,0.00029589,2]
[314460217,1708367461659,-500.0,0.00029589,2]
[314460220,1708367461672,-500.0,0.00029589,2]
[314460222,1708367461684,-500.0,0.00029589,2]
[314460224,1708367461694,-500.0,0.00029589,2]
[314460226,1708367461704,-500.0,0.00029589,2]
[314460229,1708367461720,-4036.49,0.00029589,2]
[314460231,1708367461733,-2908.73,0.00029589,2]
[314460233,1708367461745,-2728.08,0.00029589,2]
[314460235,1708367461758,-1394.32,0.00029589,2]
[314460238,1708367461771,-3595.38,0.00029589,2]
[314460240,1708367461782,-500.0,0.00029589,2]
[314460242,1708367461794,-637.71,0.00029589,2]
[314460245,1708367461806,-538.21,0.00029589,2]
[314460247,1708367461818,-500.0,0.00029589,2]
[314460249,1708367461831,-500.0,0.00029589,2]
[314460252,1708367461844,-342.0586096,0.00029589,2]
[314460254,1708367461858,-500.0,0.00029589,2]
[314460256,1708367461870,-500.0,0.00029589,2]
[314460259,1708367461882,-5332.66,0.00029589,2]
[314460261,1708367461892,-500.0,0.00029589,2]
[314460263,1708367461903,-2281.65,0.00029589,2]
[314460265,1708367461913,-500.0,0.00029589,2]
[314460267,1708367461924,-601.93,0.00029589,2]
[314460270,1708367461936,-617.18,0.00029589,2]
[314460272,1708367461948,-500.0,0.00029589,2]
[314460274,1708367461959,-537.12,0.00029589,2]
[314460276,1708367461972,-955.79,0.00029589,2]
[314460278,1708367461984,-872.49,0.00029589,2]
[314460281,1708367461998,-200.3472215,0.00029589,2]
[314460283,1708367462008,-1410.49093507,0.00029689,2]
[314460285,1708367462018,-155.04496304,0.000297,2]
[314460287,1708367462030,-405.58381054,0.00029717,2]
[314460289,1708367462040,-495.370212,0.00029761,2]
[314460291,1708367462050,-293.186823,0.00029761,2]
[314460293,1708367462062,-561.72095,0.00029761,2]
[314460295,1708367462072,-283.527284,0.00029761,2]
[314460298,1708367462083,-177.104667,0.00029761,2]
[314460300,1708367462094,-157.515159,0.00029761,2]
[314460302,1708367462104,-736.31,0.000298,3]
[314460304,1708367462116,-17193.41282449,0.000298,10]
[314460306,1708367462127,-500.0,0.00029863,2]
[314460308,1708367462138,-912.93,0.00029863,2]
[314460310,1708367462148,-500.0,0.00029863,2]
[314460313,1708367462159,-811.21,0.00029863,2]
[314460315,1708367462171,-846.15,0.00029863,2]
[314460317,1708367462182,-500.0,0.00029863,2]
[314460319,1708367462193,-500.0,0.00029863,2]
[314460321,1708367462204,-500.0,0.00029863,2]
[314460324,1708367462215,-627.25431739,0.00029863,2]
[314460326,1708367462226,-519.57,0.00029863,2]
[314460328,1708367462237,-500.0,0.00029863,2]
[314460330,1708367462248,-500.0,0.00029863,15]
[314460332,1708367462258,-500.0,0.00029863,2]
[314460334,1708367462269,-500.0,0.00029863,2]
[314460335,1708367462279,-1057.96,0.00029863,2]
[314460336,1708367462289,-500.0,0.00029863,2]
[314460337,1708367462300,-530.92884166,0.00029863,2]
[314460338,1708367462310,-500.0,0.00029863,2]
[314460339,1708367462320,-766.65,0.00029863,2]
[314460340,1708367462330,-500.0,0.00029863,2]
[314460341,1708367462343,-2644.18,0.00029863,2]
[314460342,1708367462355,-1570.66,0.00029863,2]
[314460343,1708367462365,-500.0,0.00029863,2]
[314460344,1708367462376,-500.0,0.00029863,2]
[314460345,1708367462387,-578.18,0.00029863,2]
[314460346,1708367462398,-1176.49,0.00029863,2]
[314460347,1708367462409,-500.0,0.00029863,2]
[314460348,1708367462419,-523.48558037,0.00029863,2]
[314460349,1708367462429,-500.0,0.00029863,2]
[314460350,1708367462440,-500.0,0.00029863,2]
[314460351,1708367462450,-500.0,0.00029863,2]
[314460353,1708367462461,-500.0,0.00029863,2]
[314460356,1708367462472,-625.28498886,0.00029863,2]
[314460358,1708367462482,-500.0,0.00029863,2]
[314460360,1708367462493,-500.0,0.00029863,2]
[314460362,1708367462504,-787.53,0.00029863,2]
[314460364,1708367462515,-500.0,0.00029863,2]
[314460366,1708367462526,-480.12010377,0.00029863,2]
[314460368,1708367462537,-500.0,0.00029863,2]
[314460370,1708367462547,-500.0,0.00029863,2]
[314460372,1708367462558,-1043.11,0.00029863,2]
[314460375,1708367462568,-1874.04,0.00029863,2]
[314460377,1708367462580,-500.0,0.00029863,2]
[314460379,1708367462591,-603.72,0.00029863,2]
[314460381,1708367462602,-500.0,0.00029863,2]
[314460383,1708367462613,-500.0,0.00029863,2]
[314460385,1708367462626,-1750.47,0.00029863,2]
[314460388,1708367462639,-500.0,0.00029863,2]
[314460390,1708367462650,-1118.02,0.00029863,2]
[314460392,1708367462662,-500.0,0.00029863,2]
[314460394,1708367462673,-500.0,0.00029863,2]
[314460396,1708367462684,-500.0,0.00029863,2]
[314460398,1708367462696,-586.37,0.00029863,2]
[314460401,1708367462708,-500.0,0.00029863,2]
[314460403,1708367462721,-4816.66,0.00029863,2]
[314460405,1708367462732,-577.82,0.00029863,2]
[314460407,1708367462744,-516.47,0.00029863,2]
[314460409,1708367462755,-500.0,0.00029863,2]
[314460412,1708367462765,-500.0,0.00029863,2]
[314460414,1708367462776,-230.48588609,0.00029863,2]
[314460416,1708367462787,-2333.29,0.00029863,2]
[314460418,1708367462798,-500.0,0.00029863,2]
[314460420,1708367462809,-4378.32,0.00029863,2]
[314460423,1708367462821,-500.0,0.00029863,2]
[314460425,1708367462832,-910.01,0.00029863,2]
[314460427,1708367462843,-797.47,0.00029863,2]
[314460429,1708367462854,-151.0,0.00029863,2]
[314460431,1708367462865,-500.0,0.00029863,2]
[314460433,1708367462876,-500.0,0.00029863,2]
[314460435,1708367462887,-500.0,0.00029863,2]
[314460438,1708367462897,-500.0,0.00029863,2]
[314460440,1708367462908,-905.61,0.00029863,2]
[314460442,1708367462919,-727.06,0.00029863,2]
[314460444,1708367462930,-907.37,0.00029863,2]
[314460446,1708367462940,-500.0,0.00029863,2]
[314460448,1708367462951,-500.0,0.00029863,2]
[314460450,1708367462962,-1074.74,0.00029863,2]
[314460453,1708367462973,-500.0,0.00029863,2]
[314460455,1708367462984,-492.78587075,0.00029863,2]
[314460457,1708367462996,-381.96938678,0.00029863,2]
[314460459,1708367463007,-1690.29,0.00029863,2]
[314460461,1708367463021,-500.0,0.00029863,2]
[314460463,1708367463032,-500.0,0.00029863,2]
[314460465,1708367463043,-500.0,0.00029863,2]
[314460468,1708367463053,-4924.96,0.00029863,2]
[314460470,1708367463064,-559.94,0.00029863,2]
[314460472,1708367463074,-2916.3,0.00029863,2]
[314460474,1708367463084,-3521.91,0.00029863,2]
[314460476,1708367463095,-194.45768043,0.00029863,2]
[314460478,1708367463105,-3532.56,0.00029863,2]
[314460480,1708367463115,-2379.85,0.00029863,2]
[314460483,1708367463126,-2054.58,0.00029863,2]
[314460485,1708367463136,-500.0,0.00029863,2]
[314460487,1708367463147,-1083.26,0.00029863,2]
[314460489,1708367463157,-9364.8,0.00029863,2]
[314460491,1708367463167,-690.81,0.00029863,2]
[314460493,1708367463178,-1048.44,0.00029863,2]
[314460495,1708367463188,-1633.78,0.00029863,2]
[314460497,1708367463198,-500.0,0.00029863,2]
[314460519,1708367463391,-12732.29,0.00029863,2]
[314460522,1708367463409,-17905.74,0.00029863,2]
[314460524,1708367463419,-25345.28,0.00029863,2]
[314460526,1708367463428,-3571.69,0.00029863,2]
[314460528,1708367463438,-1501.7,0.00029863,2]
[314460530,1708367463447,-19882.51,0.00029863,2]
[314460532,1708367463456,-566.13958897,0.00029863,2]
[314460534,1708367463466,-500.0,0.00029863,2]
[314460536,1708367463475,-500.0,0.00029863,2]
[314460538,1708367463484,-12867.4,0.00029863,2]
[314460540,1708367463494,-2687.22,0.00029863,2]
[314460542,1708367463503,-28999.91,0.00029863,2]
[314460544,1708367463512,-3171.61,0.00029863,2]
[314460546,1708367463522,-660.77,0.00029863,2]
[314460548,1708367463531,-500.0,0.00029863,2]
[314460550,1708367463541,-500.0,0.00029863,2]
[314460552,1708367463550,-500.0,0.00029863,2]
[314460554,1708367463559,-500.0,0.00029863,2]
[314460556,1708367463569,-500.0,0.00029863,2]
[314460558,1708367463579,-4036.49,0.00029863,2]
[314460560,1708367463588,-2908.73,0.00029863,2]
[314460562,1708367463597,-2728.08,0.00029863,2]
[314460564,1708367463606,-1394.32,0.00029863,2]
[314460566,1708367463616,-3595.38,0.00029863,2]
[314460568,1708367463630,-500.0,0.00029863,2]
[314460570,1708367463640,-637.71,0.00029863,2]
[314460572,1708367463649,-538.21,0.00029863,2]
[314460573,1708367463659,-500.0,0.00029863,2]
[314460575,1708367463668,-500.0,0.00029863,2]
[314460577,1708367463678,-500.0,0.00029863,2]
[314460580,1708367463688,-500.0,0.00029863,2]
[314460581,1708367463697,-5332.66,0.00029863,2]
[314460584,1708367463709,-2281.65,0.00029863,2]
[314460586,1708367463717,-500.0,0.00029863,2]
[314460588,1708367463727,-601.93,0.00029863,2]
[314460589,1708367463736,-617.18,0.00029863,2]
[314460591,1708367463745,-500.0,0.00029863,2]
[314460593,1708367463755,-537.12,0.00029863,2]
[314460595,1708367463764,-955.79,0.00029863,2]
[314460597,1708367463773,-872.49,0.00029863,2]
[314460599,1708367463783,-2277.70656453,0.000299,2]
[314460601,1708367463792,-22026.16170763,0.000299,2]
[314460604,1708367463802,-1410.49093507,0.00029988,2]
[314460605,1708367463811,-250.0,0.00029999,7]
[314460607,1708367463821,-6504.1819653,0.0003,2]
[314460610,1708367463831,-44763.55943355,0.0003,2]
[314460611,1708367463867,-3712.88220923,0.0003,2]
[314460614,1708367463877,-246.76094669,0.0003,10]
[314460616,1708367463887,-500.0,0.0003,5]
[314460618,1708367463896,-244.46255107,0.0003,4]
[314460619,1708367463905,-167.58019584,0.0003,2]
[314460621,1708367463914,-2085.12920428,0.0003,2]
[314460623,1708367463924,-376.60370143,0.0003,10]
[314460625,1708367463933,-7422.20036945,0.0003,2]
[314460628,1708367463942,-2203.14041901,0.0003,2]
[314460629,1708367463951,-13623.65548605,0.0003,2]
[314460631,1708367463961,-3573.80387623,0.0003,2]
[314460633,1708367463971,-2707.13188037,0.0003,10]
[314460635,1708367463980,-702.71339619,0.0003,2]
[314460637,1708367463989,-197495.5735908,0.0003,2]
[314460652,1708367464118,-2162.12296294,0.0003,2]
[314460655,1708367464134,-436.70656953,0.0003,2]
[314460675,1708367464341,-742.48526052,0.00027396,2]
[314460677,1708367464351,-500.0,0.00027397,2]
[314460679,1708367464360,-18462.75567774,0.0003,2]
[314460681,1708367464371,-3821.549985,0.0003,2]
[314460683,1708367464391,-1176.0,0.0003,2]
[314462146,1708368034192,156.5546577,0.0003,120]
[314462246,1708368632508,-766.48436165,0.000223,2]
[314462254,1708368632581,-530.79463113,0.000223,2]
[314462256,1708368632591,-703.66780339,0.000223,2]
[314462257,1708368632600,-404.12514188,0.00022301,2]
[314462258,1708368632609,-908.06374919,0.00022301,2]
[314462259,1708368632619,-155.06823002,0.00022302,2]
[314462260,1708368632629,-5000.0,0.00022306,14]
[314462261,1708368632639,-250.0,0.0002254,2]
[314462262,1708368632649,-3484.2675263,0.00023226,2]
[314462263,1708368632658,-9158.58314141,0.00023874,2]
[314462302,1708368638646,-155.06823002,0.00022299,2]
[314462304,1708368638656,-15741.41685859,0.00023874,2]
[314462307,1708368638667,-233.363329,0.00024033,2]
[314462309,1708368638677,-3000.0,0.00024033,2]
[314462311,1708368638687,-166.75633,0.00024658,2]
[314462313,1708368638697,-6475.38,0.0002604,3]
[314462315,1708368638707,-18623.12335327,0.00026049,2]
[314462317,1708368638722,-966.07994547,0.00026049,2]
[314462319,1708368638734,-4272.30004831,0.00026049,2]
[314462321,1708368638747,-3739.60276777,0.00026049,2]
[314462324,1708368638757,-1474.82486239,0.0002605,3]
[314462808,1708368643499,-1820.54,0.0002605,3]
[314462817,1708368643570,-927.83513761,0.0002605,3]
[314462819,1708368643579,-2663.52486239,0.00026061,2]
[314462822,1708368643591,-321.58043892,0.00026061,2]
[314462919,1708368644501,-4013.19412701,0.00026061,2]
[314462921,1708368644512,-776.89884672,0.00026061,2]
[314462923,1708368644522,-3039.44413399,0.00026061,2]
[314462926,1708368644533,-471.44655578,0.00026679,3]
[314462928,1708368644543,-155.06823002,0.00027,2]
[314462930,1708368644554,-160.88802508,0.00027297,2]
[314462932,1708368644564,-16234.4137441,0.00027381,2]
[314462934,1708368644575,-5644.53,0.00027387,3]
[314462937,1708368644586,-273.55227487,0.00027396,2]
[314462939,1708368644596,-500.0,0.00027397,2]
[314462941,1708368644607,-500.0,0.00027397,2]
[314462943,1708368644618,-748.2,0.00027397,2]
[314462945,1708368644629,-500.0,0.00027397,2]
[314462947,1708368644639,-500.0,0.00027397,2]
[314462949,1708368644649,-500.0,0.00027397,2]
[314462952,1708368644659,-500.0,0.00027397,2]
[314462954,1708368644670,-500.0,0.00027397,2]
[314462956,1708368644680,-500.0,0.00027397,2]
[314462958,1708368644690,-500.0,0.00027397,2]
[314462960,1708368644700,-500.0,0.00027397,2]
[314462962,1708368644710,-1000.0,0.00027397,2]
[314462964,1708368644721,-500.0,0.00027397,2]
[314462966,1708368644732,-500.0,0.00027397,2]
[314462968,1708368644742,-500.0,0.00027397,2]
[314462970,1708368644753,-500.0,0.00027397,2]
[314462972,1708368644763,-633.63413091,0.00027397,2]
[314462975,1708368644774,-1307.34,0.00027397,2]
[314462977,1708368644785,-500.0,0.00027397,2]
[314462979,1708368644795,-500.0,0.00027397,2]
[314462981,1708368644805,-152.442084,0.00027397,2]
[314462983,1708368644816,-500.0,0.00027397,2]
[314462985,1708368644826,-500.0,0.00027397,2]
[314462987,1708368644836,-156.36484183,0.00027397,2]
[314462989,1708368644846,-151.0,0.00027397,2]
[314462991,1708368644856,-500.0,0.00027397,2]
[314462993,1708368644866,-500.0,0.00027397,2]
[314462995,1708368644877,-500.0,0.00027397,2]
[314462997,1708368644887,-500.0,0.00027397,2]
[314462998,1708368644897,-500.0,0.00027397,2]
[314462999,1708368644907,-642.03,0.00027397,2]
[314463000,1708368644918,-500.0,0.00027397,2]
[314463001,1708368644928,-500.0,0.00027397,2]
[314463002,1708368644938,-500.0,0.00027397,2]
[314463003,1708368644948,-594.6,0.00027397,2]
[314463004,1708368644958,-500.0,0.00027397,2]
[314463005,1708368644969,-500.0,0.00027397,2]
[314463006,1708368644980,-525.8,0.00027397,2]
[314463007,1708368644991,-500.0,0.00027397,2]
[314463008,1708368645004,-500.0,0.00027397,2]
[314463009,1708368645014,-500.0,0.00027397,2]
[314463010,1708368645024,-500.0,0.00027397,2]
[314463011,1708368645034,-500.0,0.00027397,2]
[314463012,1708368645046,-500.0,0.00027397,2]
[314463013,1708368645055,-725.88,0.00027397,2]
[314463014,1708368645065,-500.0,0.00027397,2]
[314463015,1708368645077,-500.0,0.00027397,2]
[314463016,1708368645087,-500.0,0.00027397,2]
[314463018,1708368645097,-500.0,0.00027397,2]
[314463020,1708368645108,-500.0,0.00027397,2]
[314463022,1708368645118,-500.0,0.00027397,2]
[314463024,1708368645128,-1189.17,0.00027397,2]
[314463026,1708368645140,-500.0,0.00027397,2]
[314463028,1708368645149,-500.0,0.00027397,2]
[314463030,1708368645159,-500.0,0.00027397,2]
[314463032,1708368645169,-318.49410619,0.00027397,2]
[314463035,1708368645179,-500.0,0.00027397,2]
[314463037,1708368645189,-500.0,0.00027397,2]
[314463039,1708368645200,-500.0,0.00027397,2]
[314463041,1708368645211,-500.0,0.00027397,2]
[314463043,1708368645222,-500.0,0.00027397,2]
[314463045,1708368645234,-500.0,0.00027397,2]
[314463047,1708368645244,-500.0,0.00027397,2]
[314463049,1708368645254,-500.0,0.00027397,2]
[314463051,1708368645264,-712.71,0.00027397,2]
[314463053,1708368645276,-500.0,0.00027397,2]
[314463056,1708368645287,-500.0,0.00027397,2]
[314463058,1708368645297,-1217.41,0.00027397,2]
[314463060,1708368645307,-500.0,0.00027397,2]
[314463062,1708368645317,-815.19,0.00027397,2]
[314463064,1708368645329,-500.0,0.00027397,2]
[314463066,1708368645338,-500.0,0.00027397,2]
[314463068,1708368645348,-500.0,0.00027397,2]
[314463070,1708368645358,-500.0,0.00027397,2]
[314463072,1708368645368,-1483.89,0.00027397,2]
[314463074,1708368645378,-574.56474709,0.00027397,2]
[314463077,1708368645388,-500.0,0.00027397,2]
[314463079,1708368645398,-500.0,0.00027397,2]
[314463081,1708368645407,-500.0,0.00027397,2]
[314463083,1708368645418,-2904.6,0.00027397,2]
[314463085,1708368645428,-506.36132219,0.00027397,2]
[314463087,1708368645438,-500.0,0.00027397,2]
[314463089,1708368645448,-500.0,0.00027397,2]
[314463091,1708368645457,-500.0,0.00027397,2]
[314463093,1708368645467,-500.0,0.00027397,2]
[314463095,1708368645479,-500.0,0.00027397,2]
[314463097,1708368645489,-500.0,0.00027397,2]
[314463099,1708368645499,-500.0,0.00027397,2]
[314463101,1708368645509,-500.0,0.00027397,2]
[314463103,1708368645519,-631.0545711,0.00027397,2]
[314463105,1708368645529,-500.0,0.00027397,2]
[314463107,1708368645539,-500.0,0.00027397,2]
[314463109,1708368645549,-500.0,0.00027397,2]
[314463111,1708368645558,-228.38403415,0.00027397,2]
[314463113,1708368645568,-572.65,0.00027397,2]
[314463115,1708368645578,-500.0,0.00027397,2]
[314463117,1708368645587,-500.0,0.00027397,2]
[314463119,1708368645597,-500.0,0.00027397,2]
[314463121,1708368645608,-500.0,0.00027397,2]
[314463123,1708368645618,-500.0,0.00027397,2]
[314463125,1708368645627,-500.0,0.00027397,2]
[314463127,1708368645637,-500.0,0.00027397,2]
[314463129,1708368645647,-500.0,0.00027397,2]
[314463131,1708368645656,-500.0,0.00027397,2]
[314463134,1708368645666,-500.0,0.00027397,2]
[314463136,1708368645676,-500.0,0.00027397,2]
[314463138,1708368645686,-500.0,0.00027397,2]
[314463140,1708368645696,-500.0,0.00027397,2]
[314463142,1708368645706,-500.0,0.00027397,2]
[314463144,1708368645718,-500.0,0.00027397,2]
[314463146,1708368645729,-500.0,0.00027397,2]
[314463148,1708368645739,-2320.8,0.00027397,2]
[314463150,1708368645749,-500.0,0.00027397,2]
[314463152,1708368645759,-500.0,0.00027397,2]
[314463154,1708368645769,-500.0,0.00027397,2]
[314463156,1708368645779,-500.0,0.00027397,2]
[314463158,1708368645789,-500.0,0.00027397,2]
[314463160,1708368645799,-500.0,0.00027397,2]
[314463162,1708368645809,-500.0,0.00027397,2]
[314463164,1708368645819,-643.15,0.00027397,2]
[314463167,1708368645829,-500.0,0.00027397,2]
[314463169,1708368645838,-684.76,0.00027397,2]
[314463171,1708368645848,-500.0,0.00027397,2]
[314463173,1708368645857,-620.07,0.00027397,2]
[314463175,1708368645868,-500.0,0.00027397,2]
[314463177,1708368645878,-974.06148719,0.00027397,2]
[314463179,1708368645888,-500.0,0.00027397,2]
[314463181,1708368645898,-500.0,0.00027397,2]
[314463183,1708368645907,-3242.94,0.00027397,2]
[314463185,1708368645917,-500.0,0.00027397,2]
[314463187,1708368645927,-500.0,0.00027397,2]
[314463190,1708368645937,-370.41083195,0.00027397,2]
[314463192,1708368645946,-500.0,0.00027397,2]
[314463194,1708368645956,-1468.68,0.00027397,2]
[314463196,1708368645966,-500.0,0.00027397,2]
[314463198,1708368645976,-213.74897543,0.00027397,2]
[314463200,1708368645988,-500.0,0.00027397,2]
[314463202,1708368645999,-500.0,0.00027397,2]
[314463205,1708368646009,-500.0,0.00027397,2]
[314463208,1708368646018,-522.83983004,0.00027397,2]
[314463211,1708368646028,-495.49348906,0.00027397,2]
[314463214,1708368646039,-500.0,0.00027397,2]
[314463216,1708368646049,-1343.26,0.00027397,2]
[314463218,1708368646059,-219.92725415,0.00027397,2]
[314463220,1708368646069,-500.0,0.00027397,2]
[314463223,1708368646079,-502.6896192,0.00027397,2]
[314463225,1708368646089,-500.0,0.00027397,2]
[314463227,1708368646099,-500.0,0.00027397,2]
[314463229,1708368646108,-500.0,0.00027397,2]
[314463231,1708368646117,-2319.33,0.00027397,2]
[314463233,1708368646127,-500.0,0.00027397,15]
[314463235,1708368646138,-500.0,0.00027397,2]
[314463237,1708368646147,-500.0,0.00027397,2]
[314463239,1708368646157,-500.0,0.00027397,2]
[314463242,1708368646167,-500.0,0.00027397,2]
[314463245,1708368646176,-500.0,0.00027397,2]
[314463248,1708368646186,-776.99,0.00027397,2]
[314463251,1708368646196,-628.40418,0.00027397,2]
[314463254,1708368646205,-500.0,0.00027397,2]
[314463256,1708368646215,-500.0,0.00027397,2]
[314463258,1708368646226,-500.0,0.00027397,2]
[314463260,1708368646235,-1483.07,0.00027397,2]
[314463262,1708368646245,-500.0,0.00027397,2]
[314463264,1708368646255,-500.0,0.00027397,2]
[314463266,1708368646265,-1985.47,0.00027397,2]
[314463268,1708368646275,-955.03,0.00027397,2]
[314463270,1708368646285,-500.0,0.00027397,2]
[314463273,1708368646295,-500.0,0.00027397,2]
[314463275,1708368646305,-707.56,0.00027397,2]
[314463277,1708368646315,-500.0,0.00027397,2]
[314463279,1708368646325,-500.0,0.00027397,2]
[314463281,1708368646335,-390.0,0.00027397,2]
[314463283,1708368646345,-500.0,0.00027397,2]
[314463285,1708368646354,-6033.77,0.00027397,2]
[314463287,1708368646364,-1724.51,0.00027397,2]
[314463289,1708368646374,-500.0,0.00027397,2]
[314463291,1708368646383,-500.0,0.00027397,2]
[314463293,1708368646393,-500.0,0.00027397,2]
[314463295,1708368646402,-8216.85,0.00027397,2]
[314463297,1708368646413,-500.0,0.00027397,2]
[314463299,1708368646423,-500.0,0.00027397,2]
[314463301,1708368646433,-12892.55,0.00027397,2]
[314463303,1708368646443,-500.0,0.00027397,2]
[314463305,1708368646452,-500.0,0.00027397,2]
[314463307,1708368646462,-500.0,0.00027397,2]
[314463309,1708368646471,-525.92641749,0.00027397,2]
[314463311,1708368646480,-663.48,0.00027397,2]
[314463313,1708368646491,-2535.14,0.00027397,2]
[314463315,1708368646501,-299.91664867,0.00027397,2]
[314463317,1708368646510,-500.0,0.00027397,2]
[314463319,1708368646519,-500.0,0.00027397,2]
[314463321,1708368646528,-500.0,0.00027397,2]